bitfinex/quotes_BTCUSD_20230111
["timestamp","ask_amount","ask_price","bid_price","bid_amount"]
[1673472503194,0.00867491,17551.0,17550.0,4.70619375]
[1673472503699,0.00867491,17551.0,17550.0,6.01631123]
[1673472504184,0.01058454,17552.0,17551.0,0.30303503]
[1673472504433,0.01058454,17552.0,17551.0,2.43105988]
[1673472504687,0.01058454,17552.0,17551.0,4.14036388]
[1673472504942,0.01058454,17552.0,17551.0,3.62421366]
[1673472505448,0.01058454,17552.0,17551.0,4.13906348]
[1673472505699,0.01058454,17552.0,17551.0,4.28106348]
[1673472506204,0.01058454,17552.0,17551.0,3.76621366]
[1673472506463,0.01058454,17552.0,17551.0,3.51127752]
[1673472507478,0.24826243,17552.0,17551.0,3.81478156]
[1673472507744,0.01058454,17552.0,17551.0,3.34489885]
[1673472507998,0.01058454,17552.0,17551.0,3.33639885]
[1673472508262,0.01058454,17552.0,17551.0,2.97904785]
[1673472509798,0.01058454,17552.0,17551.0,3.63639885]
[1673472510337,0.01058454,17552.0,17551.0,3.27904785]
[1673472510559,0.01058454,17552.0,17551.0,2.97904785]
[1673472510812,0.01058454,17552.0,17551.0,2.40927985]
[1673472511062,0.01058454,17552.0,17551.0,2.75863085]
[1673472513403,0.01058454,17552.0,17551.0,2.40127985]
[1673472513653,0.01058454,17552.0,17551.0,1.88012154]
[1673472514671,0.01058454,17552.0,17551.0,2.40302617]
[1673472515431,0.01058454,17552.0,17551.0,1.31035354]
[1673472516177,0.01058454,17552.0,17551.0,1.66770454]
[1673472516454,0.01058454,17552.0,17551.0,1.83339981]
[1673472516818,0.01058454,17552.0,17551.0,2.40316781]
[1673472517015,0.01058454,17552.0,17551.0,2.70316781]
[1673472517271,0.01058454,17552.0,17551.0,3.06051881]
[1673472517778,0.01058454,17552.0,17551.0,2.40316781]
[1673472519031,0.01058454,17552.0,17551.0,2.70316781]
[1673472520548,0.01058454,17552.0,17551.0,3.06051881]
[1673472521829,0.01058454,17552.0,17551.0,3.22281881]
[1673472524591,0.01058454,17552.0,17551.0,2.86546781]
[1673472524849,0.01058454,17552.0,17551.0,3.22281881]
[1673472527007,0.01058454,17552.0,17551.0,3.52281881]
[1673472527998,0.01058454,17552.0,17551.0,3.22253831]
[1673472528248,0.01058454,17552.0,17551.0,2.34214104]
[1673472528531,0.01058454,17552.0,17551.0,2.04214104]
[1673472530538,0.01058454,17552.0,17551.0,2.04202226]
[1673472532952,0.01058454,17552.0,17551.0,2.0421399]
[1673472533195,0.01058454,17552.0,17551.0,2.04202226]
[1673472533449,0.01058454,17552.0,17551.0,0.74555051]
[1673472533704,0.01058454,17552.0,17551.0,0.142]
[1673472533972,0.80795202,17552.0,17551.0,0.142]
[1673472534224,0.86991702,17552.0,17551.0,0.142]
[1673472534469,0.63713245,17552.0,17551.0,0.142]
[1673472538590,0.63713245,17552.0,17551.0,0.711768]
[1673472545175,0.01058454,17552.0,17551.0,0.711768]
[1673472545689,0.01058454,17552.0,17551.0,2.46708675]
[1673472545939,0.01058454,17552.0,17551.0,2.93696946]
[1673472546703,0.01058454,17552.0,17551.0,3.1919056]
[1673472547201,0.01058454,17552.0,17551.0,2.93696946]
[1673472547708,0.01058454,17552.0,17551.0,3.1919056]
[1673472548216,0.01058454,17552.0,17551.0,4.06616565]
[1673472548711,0.01058454,17552.0,17551.0,4.06736836]
[1673472549201,0.01058454,17552.0,17551.0,3.76736836]
[1673472549429,0.01058454,17552.0,17551.0,3.5492566]
[1673472550251,0.01058454,17552.0,17551.0,4.06734654]
[1673472550753,0.01058454,17552.0,17551.0,4.63711454]
[1673472551017,0.01058454,17552.0,17551.0,4.1190246]
[1673472551250,0.01058454,17552.0,17551.0,3.4616736]
[1673472551492,0.01051403,17552.0,17551.0,3.7616736]
[1673472551740,0.01051403,17552.0,17551.0,4.07974238]
[1673472552006,0.01051403,17552.0,17551.0,4.95518795]
[1673472552248,0.01051403,17552.0,17551.0,4.95521751]
[1673472553243,0.01051403,17552.0,17551.0,3.86732538]
[1673472554752,0.00551403,17552.0,17551.0,3.61238924]
[1673472555768,0.00551403,17552.0,17551.0,3.31238924]
[1673472556035,0.00551403,17552.0,17551.0,3.88215724]
[1673472556282,0.00551403,17552.0,17551.0,3.52457672]
[1673472556540,0.00551403,17552.0,17551.0,3.36042608]
[1673472557047,0.00551403,17552.0,17551.0,3.00307508]
[1673472557309,0.00551403,17552.0,17551.0,2.13330708]
[1673472557595,0.00551403,17552.0,17551.0,1.96342437]
[1673472568503,0.77530487,17552.0,17551.0,0.16006878]
[1673472568756,1.09340407,17552.0,17551.0,0.16006878]
[1673472569719,1.03143907,17552.0,17551.0,0.16006878]
[1673472570753,1.09340407,17552.0,17551.0,0.16006878]
[1673472571250,0.77530487,17552.0,17551.0,0.16006878]
[1673472572500,0.6044853,17552.0,17551.0,0.16006878]
[1673472572777,0.77530487,17552.0,17551.0,0.16006878]
[1673472573520,0.6044853,17552.0,17551.0,0.16006878]
[1673472574282,0.77530487,17552.0,17551.0,0.16006878]
[1673472580998,0.00551403,17552.0,17551.0,0.7679484]
[1673472581219,0.00551403,17552.0,17551.0,1.3377164]
[1673472581714,0.00551403,17552.0,17551.0,0.7679484]
[1673472583201,0.00551403,17552.0,17551.0,1.3377164]
[1673472585183,0.1763336,17552.0,17551.0,1.3377164]
[1673472585698,0.84899346,17552.0,17551.0,1.3377164]
[1673472585943,0.84899346,17552.0,17551.0,0.7679484]
[1673472587993,0.84899346,17552.0,17551.0,0.76806604]
[1673472588730,0.84899346,17552.0,17551.0,0.7679484]
[1673472589229,0.84899346,17552.0,17551.0,0.16006878]
[1673472594714,1.10512766,17552.0,17551.0,0.16006878]
[1673472597202,1.44708441,17552.0,17551.0,0.16006878]
[1673472597449,1.27626484,17552.0,17551.0,0.16006878]
[1673472598679,1.10512828,17552.0,17551.0,0.16006878]
[1673472601227,1.33822984,17552.0,17551.0,0.16006878]
[1673472601470,1.33649484,17552.0,17551.0,0.16006878]
[1673472601721,1.27452984,17552.0,17551.0,0.16006878]
[1673472601974,1.10339703,17552.0,17551.0,0.16006878]
[1673472602487,1.27452984,17552.0,17551.0,0.16006878]
[1673472602741,1.33649484,17552.0,17551.0,0.16006878]
[1673472604225,1.1033844,17552.0,17551.0,0.16006878]
[1673472604480,1.10338434,17552.0,17551.0,0.16006878]
[1673472604977,1.10338434,17552.0,17551.0,0.84152102]
[1673472604978,0.84725014,17552.0,17551.0,0.84152102]
[1673472605473,0.17459028,17552.0,17551.0,0.84152102]
[1673472605714,0.17459028,17552.0,17551.0,1.36311849]
[1673472605967,0.17459028,17552.0,17551.0,1.36317594]
[1673472606210,0.00377903,17552.0,17551.0,1.36317594]
[1673472606471,0.00377903,17552.0,17551.0,2.19040965]
[1673472606729,0.00377903,17552.0,17551.0,4.55551136]
[1673472606963,0.00377903,17552.0,17551.0,4.89542622]
[1673472607199,0.00377903,17552.0,17551.0,4.72584359]
[1673472607456,0.00377903,17552.0,17551.0,4.89542622]
[1673472607973,0.00377903,17552.0,17551.0,4.73332622]
[1673472608220,0.00377903,17552.0,17551.0,5.06594497]
[1673472608467,0.00377903,17552.0,17551.0,4.72603011]
[1673472609210,0.00377903,17552.0,17551.0,5.46539422]
[1673472611441,0.00377903,17552.0,17551.0,5.46551186]
[1673472612452,0.00377903,17552.0,17551.0,5.6357557]
[1673472612950,0.00377903,17552.0,17551.0,5.125597]
[1673472613198,0.00377903,17552.0,17551.0,5.2958173]
[1673472613705,0.00377903,17552.0,17551.0,5.46551186]
[1673472614236,0.00377903,17552.0,17551.0,5.63630345]
[1673472614521,0.00377903,17552.0,17551.0,5.46586935]
[1673472616546,0.00377903,17552.0,17551.0,4.95485121]
[1673472617067,0.00377903,17552.0,17551.0,6.09418866]
[1673472617323,0.00377903,17552.0,17551.0,4.95485121]
[1673472618114,0.00377903,17552.0,17551.0,5.52630411]
[1673472618371,0.00377903,17552.0,17551.0,4.95485121]
[1673472618661,0.00377903,17552.0,17551.0,6.68251583]
[1673472618920,0.00377903,17552.0,17551.0,6.09417726]
[1673472619188,0.00377903,17552.0,17551.0,4.95485121]
[1673472619439,0.01144698,17553.0,17552.0,0.96354535]
[1673472619708,0.01144698,17553.0,17552.0,5.29503606]
[1673472619961,0.01144698,17553.0,17552.0,4.36159104]
[1673472620472,0.01144698,17553.0,17552.0,3.88374347]
[1673472620717,0.01144698,17553.0,17552.0,3.95574347]
[1673472620979,0.01144698,17553.0,17552.0,4.1257653]
[1673472621749,0.01144698,17553.0,17552.0,3.95574347]
[1673472624283,0.01144698,17553.0,17552.0,3.28172153]
[1673472624533,0.01144698,17553.0,17552.0,2.92437053]
[1673472624782,0.01144698,17553.0,17552.0,3.81857307]
[1673472625035,0.01144698,17553.0,17552.0,3.9885949]
[1673472625279,0.01144698,17553.0,17552.0,4.2885949]
[1673472629506,0.01144698,17553.0,17552.0,4.54362764]
[1673472629795,0.01144698,17553.0,17552.0,3.62504955]
[1673472630058,0.01144698,17553.0,17552.0,5.1487917]
[1673472631082,0.01144698,17553.0,17552.0,4.31076482]
[1673472631824,0.01144698,17553.0,17552.0,4.05573208]
[1673472633608,0.01144698,17553.0,17552.0,4.31076482]
[1673472634362,0.01144698,17553.0,17552.0,4.98665598]
[1673472635381,0.01144698,17553.0,17552.0,4.31076482]
[1673472636409,0.01144698,17553.0,17552.0,4.05573208]
[1673472637152,0.01144698,17553.0,17552.0,4.31076482]
[1673472637403,0.01144698,17553.0,17552.0,5.22908026]
[1673472639440,0.01144698,17553.0,17552.0,4.56370176]
[1673472639954,0.01135163,17553.0,17552.0,4.56370176]
[1673472640435,0.01135163,17553.0,17552.0,5.15384315]
[1673472640943,0.01135163,17553.0,17552.0,4.56370176]
[1673472641436,0.01135163,17553.0,17552.0,5.1685509]
[1673472641682,0.01135163,17553.0,17552.0,4.56370176]
[1673472641928,0.01135163,17553.0,17552.0,5.43079183]
[1673472642437,0.01135163,17553.0,17552.0,5.27184358]
[1673472642687,0.01135163,17553.0,17552.0,5.30700462]
[1673472642938,0.01135163,17553.0,17552.0,4.80239675]
[1673472643195,0.01135163,17553.0,17552.0,6.29057229]
[1673472643441,0.01135163,17553.0,17552.0,6.15057229]
[1673472643692,0.01135163,17553.0,17552.0,6.29057229]
[1673472644437,0.01135163,17553.0,17552.0,6.63066878]
[1673472644958,0.01135163,17553.0,17552.0,5.94183477]
[1673472645180,0.01135163,17553.0,17552.0,5.60173828]
[1673472645466,0.01266795,17554.0,17553.0,0.44772836]
[1673472645715,0.01266795,17554.0,17553.0,4.89696873]
[1673472645972,0.01266795,17554.0,17553.0,6.60607773]
[1673472646497,0.01266795,17554.0,17553.0,5.93131781]
[1673472646743,0.01266795,17554.0,17553.0,6.62542758]
[1673472647000,0.01266795,17554.0,17553.0,4.93406142]
[1673472647259,0.01266795,17554.0,17553.0,6.07329446]
[1673472647515,0.01266795,17554.0,17553.0,6.6753176]
[1673472648252,0.01266795,17554.0,17553.0,6.67531968]
[1673472648502,0.01266795,17554.0,17553.0,5.53608456]
[1673472648753,0.01266795,17554.0,17553.0,6.67531764]
[1673472648992,0.01266795,17554.0,17553.0,6.67543588]
[1673472649251,0.01455805,17556.0,17554.0,0.3]
[1673472649514,0.01455805,17556.0,17555.0,1.496627]
[1673472649780,0.01455805,17556.0,17555.0,1.139276]
[1673472650031,0.01455805,17556.0,17554.0,1.1926708]
[1673472650032,0.52886495,17556.0,17554.0,1.1926708]
[1673472650280,0.52886495,17556.0,17553.0,1.19234127]
[1673472650281,0.71755882,17555.0,17553.0,1.19234127]
[1673472650531,0.95523671,17555.0,17553.0,1.19234127]
[1673472650741,0.71755882,17555.0,17553.0,1.19234127]
[1673472651291,0.7415035,17556.0,17553.0,2.17473585]
[1673472651292,0.1853693,17556.0,17553.0,2.17473585]
[1673472651539,0.90788991,17556.0,17555.0,0.003]
[1673472651788,0.73707866,17556.0,17554.0,1.57744153]
[1673472652004,0.73707866,17556.0,17554.0,1.43980597]
[1673472652254,0.73707866,17556.0,17554.0,1.60991388]
[1673472652494,0.73707866,17556.0,17554.0,1.43980597]
[1673472652985,0.73707866,17556.0,17554.0,2.21888466]
[1673472653482,0.73707866,17556.0,17555.0,0.96885062]
[1673472653998,0.73707866,17556.0,17555.0,0.66885062]
[1673472654248,0.73707866,17556.0,17555.0,0.64585062]
[1673472655027,0.73707866,17556.0,17555.0,0.64885062]
[1673472658235,0.73707866,17556.0,17555.0,0.64891062]
[1673472659230,0.73707866,17556.0,17555.0,0.64885062]
[1673472661001,0.01455805,17556.0,17555.0,0.64885062]
[1673472661267,0.01455805,17556.0,17555.0,1.21848862]
[1673472665185,0.01455805,17556.0,17555.0,0.81895853]
[1673472670724,0.01455805,17556.0,17555.0,0.64885062]
[1673472672772,0.01455805,17556.0,17555.0,0.81895853]
[1673472673484,0.01455805,17556.0,17555.0,1.38859653]
[1673472673727,0.01455805,17556.0,17555.0,3.58158497]
[1673472673989,0.01455805,17556.0,17555.0,4.23893597]
[1673472674234,0.01455805,17556.0,17555.0,3.88158497]
[1673472674799,0.01455805,17556.0,17555.0,4.18158497]
[1673472675057,0.01455805,17556.0,17555.0,3.88158497]
[1673472675312,0.01455805,17556.0,17555.0,4.05169459]
[1673472675869,0.01455805,17556.0,17555.0,3.88171798]
[1673472676364,0.01455805,17556.0,17555.0,4.2390712]
[1673472676608,0.01455805,17556.0,17555.0,3.8817202]
[1673472676861,0.01455805,17556.0,17555.0,4.4513582]
[1673472677121,0.01455805,17556.0,17555.0,4.45136515]
[1673472677873,0.01455805,17556.0,17555.0,4.62133259]
[1673472678096,0.01446147,17556.0,17555.0,4.45136603]
[1673472678346,0.01446147,17556.0,17555.0,4.62133259]
[1673472678604,0.01446147,17556.0,17555.0,4.45136645]
[1673472679103,0.01446147,17556.0,17555.0,4.45114587]
[1673472679364,0.06125386,17557.0,17556.0,0.89443803]
[1673472679620,0.06125386,17557.0,17556.0,2.00029144]
[1673472679871,0.01313827,17557.0,17556.0,1.46404303]
[1673472680890,0.01313827,17557.0,17556.0,1.46495798]
[1673472681645,0.01313827,17557.0,17556.0,2.20481437]
[1673472682234,0.01313827,17557.0,17556.0,2.03456298]
[1673472682437,0.01313827,17557.0,17556.0,2.20481437]
[1673472682950,0.01313827,17557.0,17556.0,2.03456298]
[1673472683720,0.59929296,17557.0,17556.0,0.001]
[1673472683977,0.83206921,17557.0,17556.0,0.001]
[1673472684227,1.65777641,17557.0,17556.0,0.001]
[1673472684487,1.65777641,17557.0,17556.0,0.00106]
[1673472684743,1.95777641,17557.0,17556.0,0.00106]
[1673472685249,2.12892191,17557.0,17556.0,0.00106]
[1673472685507,1.9576584,17557.0,17556.0,0.00106]
[1673472685764,1.1319512,17557.0,17556.0,0.00106]
[1673472686017,0.59929296,17557.0,17556.0,0.00106]
[1673472689569,0.59929296,17557.0,17556.0,0.001]
[1673472691079,0.7699862,17557.0,17556.0,0.001]
[1673472691330,0.59929296,17557.0,17556.0,0.001]
[1673472692121,0.7699862,17557.0,17556.0,0.001]
[1673472693681,0.59929296,17557.0,17556.0,0.001]
[1673472693848,0.7699862,17557.0,17556.0,0.001]
[1673472694349,0.9322862,17557.0,17556.0,0.001]
[1673472694598,0.8319512,17557.0,17556.0,0.001]
[1673472694862,0.7699862,17557.0,17556.0,0.001]
[1673472696315,1.0261204,17557.0,17556.0,0.001]
[1673472696556,0.7699862,17557.0,17556.0,0.001]
[1673472696796,1.0880854,17557.0,17556.0,0.001]
[1673472697060,1.0261204,17557.0,17556.0,0.001]
[1673472697322,1.0880854,17557.0,17556.0,0.001]
[1673472698048,1.0261204,17557.0,17556.0,0.001]
[1673472698778,1.0880854,17557.0,17556.0,0.001]
[1673472699263,0.7699862,17557.0,17556.0,0.001]
[1673472699729,1.1884204,17557.0,17556.0,0.001]
[1673472699984,0.9942512,17557.0,17556.0,0.001]
[1673472700956,0.9322862,17557.0,17556.0,0.001]
[1673472701201,0.9942512,17557.0,17556.0,0.001]
[1673472703232,0.9322862,17557.0,17556.0,0.001]
[1673472703482,0.76159296,17557.0,17556.0,0.001]
[1673472703748,0.9322862,17557.0,17556.0,0.001]
[1673472704254,0.8319512,17557.0,17556.0,0.001]
[1673472704502,0.7699862,17557.0,17556.0,0.001]
[1673472705974,0.59929296,17557.0,17556.0,0.001]
[1673472708481,0.59929296,17557.0,17556.0,0.01822646]
[1673472709466,0.7699862,17557.0,17556.0,0.01822646]
[1673472720400,0.18860827,17557.0,17556.0,0.56792934]
[1673472720621,0.01313827,17557.0,17556.0,0.73818073]
[1673472722366,0.01313827,17557.0,17556.0,0.56792934]
[1673472723094,0.01313827,17557.0,17556.0,0.73818073]
[1673472724594,0.01313827,17557.0,17556.0,1.30778573]
[1673472726115,0.01313827,17557.0,17556.0,0.73818073]
[1673472726375,0.01313827,17557.0,17556.0,0.56792934]
[1673472726626,0.01313827,17557.0,17556.0,0.73818073]
[1673472727652,0.01313827,17557.0,17556.0,0.56792934]
[1673472728106,0.01313827,17557.0,17556.0,1.13753434]
[1673472728359,0.01313827,17557.0,17556.0,2.17605636]
[1673472728604,0.01313827,17557.0,17556.0,3.82617497]
[1673472728861,0.01313827,17557.0,17556.0,3.35817423]
[1673472729097,0.01313827,17557.0,17556.0,4.39578481]
[1673472729334,0.01313827,17557.0,17556.0,4.75313581]
[1673472729588,0.17709151,17558.0,17556.0,4.75313581]
[1673472729589,0.01479151,17558.0,17557.0,0.86554419]
[1673472729836,0.01479151,17558.0,17557.0,4.88032245]
[1673472730082,0.01479151,17558.0,17557.0,4.75051825]
[1673472730343,0.01479151,17558.0,17557.0,4.74932336]
[1673472730592,0.01479151,17558.0,17557.0,2.74294398]
[1673472731111,0.01479151,17558.0,17557.0,2.74594398]
[1673472731362,0.01479151,17558.0,17557.0,3.10329498]
[1673472731615,0.01479151,17558.0,17557.0,2.74594398]
[1673472732124,0.01479151,17558.0,17557.0,0.003]
[1673472732387,0.6837511,17558.0,17557.0,0.003]
[1673472732630,0.6837511,17558.0,17557.0,0.00306]
[1673472732883,1.11057854,17558.0,17557.0,0.00306]
[1673472733127,1.17254354,17558.0,17557.0,0.00306]
[1673472733953,1.42398434,17558.0,17557.0,0.00306]
[1673472734199,0.6837511,17558.0,17557.0,0.00306]
[1673472734442,0.8446511,17558.0,17557.0,0.00306]
[1673472734703,0.6837511,17558.0,17557.0,0.00306]
[1673472735239,0.85444434,17558.0,17557.0,0.00306]
[1673472737443,1.11057854,17558.0,17557.0,0.00306]
[1673472737688,0.85444434,17558.0,17557.0,0.003]
[1673472737945,1.11057854,17558.0,17557.0,0.003]
[1673472738191,1.85138205,17558.0,17557.0,0.003]
[1673472738434,1.91334705,17558.0,17557.0,0.003]
[1673472738679,2.48288705,17558.0,17557.0,0.003]
[1673472738934,2.78288705,17558.0,17557.0,0.003]
[1673472742938,2.21334705,17558.0,17557.0,0.003]
[1673472743475,1.17254927,17558.0,17557.0,0.003]
[1673472744252,1.17254927,17558.0,17557.0,0.0031176]
[1673472744518,1.17254927,17558.0,17557.0,0.0001176]
[1673472744770,1.17254927,17558.0,17556.0,1.30815396]
[1673472745020,1.11058427,17558.0,17556.0,0.73966417]
[1673472745268,1.41058427,17558.0,17556.0,1.30797448]
[1673472745519,0.061965,17557.0,17556.0,1.30797448]
[1673472745779,0.1612,17557.0,17556.0,0.73966417]
[1673472746033,0.223165,17557.0,17556.0,0.73966417]
[1673472746279,0.223165,17557.0,17556.0,0.66766417]
[1673472746526,0.223165,17557.0,17556.0,0.73866417]
[1673472747018,0.223165,17557.0,17556.0,0.80966417]
[1673472748042,0.1612,17557.0,17556.0,0.80966417]
[1673472748804,0.1613176,17557.0,17556.0,0.15740406]
[1673472749052,0.2232826,17557.0,17556.0,0.15740406]
[1673472749320,0.1612,17557.0,17556.0,0.15740406]
[1673472749817,0.78254927,17558.0,17556.0,0.15740406]
[1673472750071,0.78254927,17558.0,17556.0,1.02382206]
[1673472750422,0.78254927,17558.0,17556.0,0.72382797]
[1673472750802,0.78254927,17558.0,17556.0,0.58182348]
[1673472751020,1.42450602,17558.0,17556.0,0.08640406]
[1673472751282,1.08254927,17558.0,17556.0,0.65281288]
[1673472751534,1.08254927,17558.0,17556.0,0.65281289]
[1673472751781,1.08254927,17558.0,17556.0,0.08640406]
[1673472752010,1.24484927,17558.0,17556.0,0.08640406]
[1673472752770,1.24484927,17558.0,17556.0,0.08634406]
[1673472753025,0.94484927,17558.0,17556.0,0.08634406]
[1673472753280,0.94484927,17558.0,17556.0,0.67043336]
[1673472753518,0.94484927,17558.0,17556.0,1.23678606]
[1673472754274,0.78254927,17558.0,17556.0,1.23678607]
[1673472763011,0.78254927,17558.0,17556.0,0.67043336]
[1673472763012,0.17069897,17557.0,17556.0,0.67043336]
[1673472763994,0.17069897,17557.0,17556.0,0.59943336]
[1673472764248,0.17069897,17557.0,17556.0,0.01534406]
[1673472765000,0.17069897,17557.0,17556.0,0.08634406]
[1673472766534,0.78254927,17558.0,17556.0,0.08634406]
[1673472766798,0.78254927,17558.0,17556.0,0.65265378]
[1673472767010,1.08254927,17558.0,17556.0,0.65265378]
[1673472767513,0.17069897,17557.0,17556.0,0.08634406]
[1673472767766,0.17069897,17557.0,17556.0,0.01534406]
[1673472768025,0.17069897,17557.0,17556.0,0.08634406]
[1673472768749,0.17069897,17557.0,17556.0,0.01534406]
[1673472768998,0.17069897,17557.0,17556.0,0.08634406]
[1673472771918,0.17069897,17557.0,17556.0,0.08623528]
[1673472774187,1.4199847,17557.0,17556.0,0.08623528]
[1673472774484,1.07814554,17557.0,17556.0,0.08623528]
[1673472774707,1.07803226,17557.0,17556.0,0.08623528]
[1673472775760,0.82189806,17557.0,17556.0,0.08623528]
[1673472776525,1.07803226,17557.0,17556.0,0.08623528]
[1673472780039,1.07814986,17557.0,17556.0,0.08623528]
[1673472780289,1.07803226,17557.0,17556.0,0.08623528]
[1673472780547,1.24919603,17557.0,17556.0,0.08623528]
[1673472781051,1.0780376,17557.0,17556.0,0.08623528]
[1673472781848,1.0781552,17557.0,17556.0,0.08623528]
[1673472782137,1.0780376,17557.0,17556.0,0.08623528]
[1673472785024,1.0781552,17557.0,17556.0,0.08623528]
[1673472785279,1.0780376,17557.0,17556.0,0.08623528]
[1673472792516,1.0781552,17557.0,17556.0,0.08623528]
[1673472793022,1.0780376,17557.0,17556.0,0.08623528]
[1673472793524,1.0781552,17557.0,17556.0,0.08623528]
[1673472793780,1.0780376,17557.0,17556.0,0.08623528]
[1673472794539,1.0781552,17557.0,17556.0,0.08623528]
[1673472794797,1.0780376,17557.0,17556.0,0.08623528]
[1673472797859,1.24919603,17557.0,17556.0,0.08623528]
[1673472798105,1.07803334,17557.0,17556.0,0.08623528]
[1673472799143,1.07803334,17557.0,17556.0,0.65281754]
[1673472799144,0.17079406,17557.0,17556.0,0.65281754]
[1673472799411,0.17079406,17557.0,17556.0,0.65245226]
[1673472799679,0.17079406,17557.0,17556.0,0.65251105]
[1673472799958,0.17079406,17557.0,17556.0,0.08623528]
[1673472800430,0.42692826,17557.0,17556.0,0.08623528]
[1673472801786,0.42704586,17557.0,17556.0,0.08623528]
[1673472802286,0.42692826,17557.0,17556.0,0.08623528]
[1673472803483,0.17079406,17557.0,17556.0,0.08623528]
[1673472806194,0.17079406,17557.0,17556.0,0.83964874]
[1673472806696,0.17079406,17557.0,17556.0,1.4059616]
[1673472806943,0.17079406,17557.0,17556.0,1.8053708]
[1673472807179,1.12292064,17558.0,17556.0,1.9755666]
[1673472807416,0.17079406,17557.0,17556.0,1.9755666]
[1673472807737,0.17079406,17557.0,17556.0,1.40925374]
[1673472807988,0.17079406,17557.0,17556.0,1.97545061]
[1673472808233,0.17091166,17557.0,17556.0,1.40925374]
[1673472808475,0.17091166,17557.0,17556.0,0.66945294]
[1673472808756,0.42692826,17557.0,17556.0,0.66945294]
[1673472809015,0.42692826,17557.0,17556.0,0.08623528]
[1673472809262,1.16940221,17557.0,17556.0,0.08623528]
[1673472809517,1.57798956,17557.0,17556.0,0.08623528]
[1673472809773,1.38072752,17557.0,17556.0,0.08611851]
[1673472810041,2.61664186,17557.0,17556.0,0.08611851]
[1673472810301,2.91664186,17557.0,17556.0,0.08611851]
[1673472810544,1.78535198,17557.0,17556.0,0.08611851]
[1673472811294,2.32023757,17557.0,17556.0,0.08611851]
[1673472811832,2.74709567,17557.0,17556.0,0.08611851]
[1673472812087,2.32023757,17557.0,17556.0,0.08611851]
[1673472812365,2.35492498,17557.0,17556.0,0.08611851]
[1673472812868,3.05621951,17557.0,17556.0,0.08611851]
[1673472813101,3.48308269,17557.0,17556.0,0.08611851]
[1673472813594,2.78178816,17557.0,17556.0,0.08611851]
[1673472813860,3.93138817,17557.0,17556.0,0.08611851]
[1673472814354,4.11139817,17557.0,17556.0,0.08611851]
[1673472814604,3.8992571,17557.0,17556.0,0.08611851]
[1673472814850,3.95676562,17557.0,17556.0,0.01511851]
[1673472815096,3.8992571,17557.0,17556.0,0.01511851]
[1673472815342,4.23071765,17557.0,17556.0,0.01511851]
[1673472815843,4.23571765,17557.0,17556.0,0.02311851]
[1673472816097,4.23071765,17557.0,17556.0,0.01511851]
[1673472816337,2.84643489,17557.0,17556.0,0.02611851]
[1673472816844,3.4946007,17557.0,17556.0,0.02611851]
[1673472817092,3.434459,17557.0,17556.0,0.02611851]
[1673472818576,3.43443557,17557.0,17556.0,0.02611851]
[1673472818836,3.43443515,17557.0,17556.0,0.02611851]
[1673472819071,3.434376,17557.0,17556.0,0.02611851]
[1673472819567,3.757076,17557.0,17556.0,0.02611851]
[1673472819815,4.26756962,17557.0,17556.0,0.02611851]
[1673472821548,3.84128441,17557.0,17556.0,0.02611851]
[1673472822530,3.1931186,17557.0,17556.0,0.02611851]
[1673472823553,3.88222302,17557.0,17556.0,0.02611851]
[1673472824062,3.1931186,17557.0,17556.0,0.02611851]
[1673472824311,3.44791948,17557.0,17556.0,0.02611851]
[1673472824570,3.95970136,17557.0,17556.0,0.02611851]
[1673472827378,3.44791948,17557.0,17556.0,0.02611851]
[1673472828658,2.8704186,17557.0,17556.0,0.02611851]
[1673472828875,3.44791948,17557.0,17556.0,0.02611851]
[1673472829381,4.91965755,17557.0,17556.0,0.02611851]
[1673472829630,4.59389192,17557.0,17556.0,0.02350666]
[1673472830658,5.67879192,17557.0,17556.0,0.02350666]
[1673472830902,6.25530087,17557.0,17556.0,0.02350666]
[1673472831437,5.67879192,17557.0,17556.0,0.02350666]
[1673472831693,6.25530087,17557.0,17556.0,0.02350666]
[1673472832419,5.67879192,17557.0,17556.0,0.02350666]
[1673472832968,6.25530087,17557.0,17556.0,0.02350666]
[1673472833177,5.67879192,17557.0,17556.0,0.02350666]
[1673472834443,5.19349192,17557.0,17556.0,0.02350666]
[1673472834684,5.67699192,17557.0,17556.0,0.02350666]
[1673472834931,5.19349192,17557.0,17556.0,0.02350666]
[1673472837959,5.51819397,17557.0,17556.0,0.02350666]
[1673472838688,5.19455352,17557.0,17556.0,0.02350666]
[1673472839200,5.70527559,17557.0,17556.0,0.02350666]
[1673472839496,5.51819774,17557.0,17556.0,0.02350666]
[1673472839700,5.51819774,17557.0,17556.0,0.021156]
[1673472839955,5.46068922,17557.0,17556.0,0.021156]
[1673472840425,5.46068922,17557.0,17556.0,0.0260017]
[1673472840678,5.13684531,17557.0,17556.0,0.0260017]
[1673472842160,5.19435383,17557.0,17556.0,0.0260017]
[1673472842434,5.51824653,17557.0,17556.0,0.0260017]
[1673472842676,4.45485203,17557.0,17556.0,0.0260017]
[1673472843239,4.39734351,17557.0,17556.0,0.0260017]
[1673472843434,4.37524439,17557.0,17556.0,0.0260017]
[1673472843679,4.67524439,17557.0,17556.0,0.0260017]
[1673472844650,4.35064439,17557.0,17556.0,0.0260017]
[1673472845630,4.93003545,17557.0,17556.0,0.0260017]
[1673472846655,4.35253457,17557.0,17556.0,0.0260017]
[1673472847151,4.02740671,17557.0,17556.0,0.0260017]
[1673472847616,4.60490759,17557.0,17556.0,0.0260017]
[1673472848641,4.02551653,17557.0,17556.0,0.0260017]
[1673472849129,4.60202548,17557.0,17556.0,0.0260017]
[1673472849677,4.92642548,17557.0,17556.0,0.02340154]
[1673472850867,3.77241565,17557.0,17556.0,0.02340154]
[1673472851859,4.48429751,17557.0,17556.0,0.02340154]
[1673472852142,4.18429751,17557.0,17556.0,0.02340154]
[1673472852831,3.47241565,17557.0,17556.0,0.02340154]
[1673472853082,4.28049451,17557.0,17556.0,0.02340154]
[1673472853363,4.60873449,17557.0,17556.0,0.02340154]
[1673472853575,4.60873449,17557.0,17553.0,0.56805161]
[1673472853576,0.3,17556.0,17553.0,0.56805161]
[1673472853816,0.3,17553.0,17552.0,0.56760605]
[1673472854051,1.80355569,17553.0,17552.0,0.00015]
[1673472854308,1.7364667,17553.0,17552.0,0.00015]
[1673472854569,2.39334361,17553.0,17552.0,0.00015]
[1673472854831,0.3,17552.0,17550.0,0.57206063]
[1673472855082,1.53390746,17552.0,17550.0,1.31224293]
[1673472855323,1.29622957,17552.0,17550.0,1.31224293]
[1673472855565,1.29622957,17552.0,17550.0,0.74478688]
[1673472855833,1.86596457,17552.0,17550.0,0.74478688]
[1673472857541,2.46008164,17552.0,17550.0,9.74478688]
[1673472857795,2.15996404,17552.0,17550.0,9.74478688]
[1673472858037,2.15996404,17552.0,17550.0,9.16690458]
[1673472858294,0.17060049,17551.0,17550.0,9.23290458]
[1673472858545,0.69085305,17551.0,17550.0,9.23290458]
[1673472859264,1.26062105,17551.0,17550.0,9.16690458]
[1673472859509,1.26162105,17551.0,17550.0,9.23290458]